Cogmind - Beta 16 @@@ ROGUE MODE // 2025.10.26 @ 05:10:26 Player: Rosa Result: Self-destructed Performance ------------- Evolutions (2) 1000 Regions Visited (5) 1000 Robots Destroyed (16) 80 Value Destroyed (382) 382 Prototype IDs (0) 0 Alien Tech Used (0) 0 Bonus (46) 46 TOTAL SCORE: 2508 Bonus ------- Follower Combat Kills 46 Cogmind --------- Core Integrity 550/550 Matter 268/300 Energy 150/160 System Corruption 0% Temperature Cool (0) Movement Flying (117) Ox1 Location -8/Materials Parts ------- > --- POWER (2) -------- Light Nuclear Core > --- PROPULSION (4) --- Improved Hover Unit Flight Unit Flight Unit > --- UTILITY (2) ------ Small Storage Unit Propulsion Shielding > --- WEAPON (3) ------- Heavy EM Pulse Gun Light Assault Rifle > --- INVENTORY (8) ---- Wheel Improved Hover Unit Heat Sink Heat Sink Light Cannon Hammer Peak State ------------ > --- POWER ------------ Light Nuclear Core > --- PROPULSION ------- Wheel Wheel Wheel Improved Hover Unit > --- UTILITY ---------- Small Storage Unit Propulsion Shielding > --- WEAPON ----------- Heavy EM Pulse Gun Light Assault Rifle > --- INVENTORY -------- Improved Hover Unit Flight Unit Flight Unit Heat Sink Heat Sink Light Cannon Hammer [Rating: 13] Favorites ----------- Power Light Ion Engine Engine Light Ion Engine Power Core Light Nuclear Core Propulsion Wheel Wheel Wheel Hover Unit Improved Hover Unit Flight Unit Flight Unit Utility Small Storage Unit Storage Small Storage Unit Protection Propulsion Shielding Weapon Assault Rifle Energy Gun Heavy EM Pulse Gun Ballistic Gun Assault Rifle Build | -11 -10 -10 -9 -9 -8 ------- Run | Yrd Mat Min Mat Min Mat Slots Evolved 4 | . . . 2 . 2 Power 1 | . . . . . 1 Propulsion 2 | . . . 2 . . Utility . | . . . . . . Weapon 1 | . . . . . 1 Parts Attached 17 | 6 . . 4 4 3 Power 3 | 1 . . 1 1 . Engine 2 | 1 . . 1 . . Core 1 | . . . . 1 . Reactor . | . . . . . . Propulsion 7 | 2 . . 2 . 3 Treads . | . . . . . . Leg . | . . . . . . Wheel 4 | 2 . . 2 . . Hover 1 | . . . . . 1 Flight 2 | . . . . . 2 Utility 2 | 1 . . 1 . . Device . | . . . . . . Storage 1 | 1 . . . . . Processor . | . . . . . . Hackware . | . . . . . . Protection 1 | . . . 1 . . Artifact . | . . . . . . Weapon 5 | 2 . . . 3 . Energy Gun 2 | . . . . 2 . Energy Cannon . | . . . . . . Ballistic Gun 3 | 2 . . . 1 . Ballistic Cannon . | . . . . . . Launcher . | . . . . . . Special Weapon . | . . . . . . Impact Weapon . | . . . . . . Slashing Weapon . | . . . . . . Piercing Weapon . | . . . . . . Special Melee Weapon . | . . . . . . Unidentified Prototypes . | . . . . . . Parts Lost 6 | . . . 3 3 . Power 2 | . . . 1 1 . Propulsion 1 | . . . . 1 . Utility . | . . . . . . Weapon 3 | . . . 2 1 . Highest Loss Streak 3 | . . . 2 3 . To Critical Strikes . | . . . . . . Average Backups 5 | 2 5 2 6 5 6 Power . | . 1 1 . . . Propulsion 2 | 1 3 . 2 2 2 Utility . | . . . . 1 2 Weapon 1 | . 1 1 2 1 2 Tool/Special . | . . . . . . Unused Backups 12 | . 7 1 . . 4 Power 3 | . 2 1 . . . Propulsion 5 | . 5 . . . . Utility 2 | . . . . . 2 Weapon 2 | . . . . . 2 Tool/Special . | . . . . . . Average Slot Usage (%) 88 | . 85 85 83 97 72 Engine 10 | . 14 14 8 9 . Wheel 34 | . 28 28 32 42 18 Storage 11 | . 14 14 11 11 9 Protection 7 | . . . 9 11 9 Energy Gun 4 | . . . . 10 9 Ballistic Gun 18 | . 28 28 21 11 9 Peak Build Rating 13 | 6 6 6 9 11 13 Average Rating 8 | 4 6 6 7 10 11 On Entrance 6 | . 6 6 6 7 11 Avg Prop Armor Cover (%) . | . . . . . . Naked Turns . | . . . . . . Heaviest Build 15 | 12 12 12 13 15 15 Greatest Support 46 | 26 26 26 46 46 30 Greatest Overweight (x) 1 | . . . . . 1 Average Overweight (x) . | . . . . . . Largest Inventory Capacity 8 | 8 8 8 8 8 8 Average Capacity 7 | 6 8 8 8 8 8 Most Carried 8 | 6 8 5 8 8 8 Average Carried 5 | 2 5 2 6 5 6 Final Capacity 8 | 8 8 8 8 8 8 Final Carried 6 | 6 2 4 6 6 6 Class Distribution -------------------- 100% | Mutant Dominant Class ---------------- Mutant | -10/Materials Mutant | -10/Mines Mutant | -9/Materials Mutant | -9/Mines Mutant | -8/Materials Resources | -11 -10 -10 -9 -9 -8 ----------- Run | Yrd Mat Min Mat Min Mat Matter Collected 529 | 198 62 16 195 58 . Remotely . | . . . . . . Salvage Created 608 | . . 46 363 199 . Parts 34 | . . 8 20 6 . Haulers Intercepted . | . . . . . . Recyclers Shooed 1 | . . . 1 . . Parts Field Recycled . | . . . . . . Retrieved Matter . | . . . . . . Parts Self-Destructed . | . . . . . . Prevented . | . . . . . . Parts Restored . | . . . . . . Kills | -11 -10 -10 -9 -9 -8 ------- Run | Yrd Mat Min Mat Min Mat Combat Hostiles Destroyed 13 | . . 3 5 5 . Guns 13 | . . 3 5 5 . Classes Destroyed 6 | . . 1 5 . . Worker 2 | . . . 2 . . Recycler 1 | . . . 1 . . Swarmer 4 | . . 3 . 1 . Grunt 6 | . . . 3 3 . Brawler 2 | . . . 1 1 . Sentry 1 | . . . 1 . . Best Kill Streak 7 | . . 3 7 2 . Combat Bots Only 4 | . . 3 4 2 . Max Kills in Single Turn 1 | . . 1 1 1 . Gunslinging . | . . . . . . Exploded . | . . . . . . Melee . | . . . . . . Uniques/NPCs Destroyed . | . . . . . . Combat | -11 -10 -10 -9 -9 -8 -------- Run | Yrd Mat Min Mat Min Mat Hostile Shots Fired 102 | . 2 13 46 41 . Missed 26 | . 1 3 14 8 . Hits 76 | . 1 10 32 33 . Melee 1 | . . . 1 . . Projectile 75 | . 1 10 31 33 . Critical Strikes 1 | . . 1 . . . Damage Taken 786 | . 11 82 385 308 . Core 150 | . 11 15 78 46 . Absorbed by Shields . | . . . . . . Redirected to Shielding 38 | . . . 21 17 . Core Remaining (%) 86 | 100 . 89 . 69 . Volleys Fired 48 | . . 4 27 17 . Largest 2 | . . 2 2 2 . Hottest 65 | . . 40 40 65 . Shots Fired 94 | . . 8 54 32 . Gun 94 | . . 8 54 32 . Cannon . | . . . . . . Launcher . | . . . . . . Special . | . . . . . . Kinetic 79 | . . 8 54 17 . Thermal . | . . . . . . Explosive . | . . . . . . Electromagnetic 15 | . . . . 15 . Robot Hit Streak 13 | . . 5 10 13 . Robot Miss Streak 3 | . . 3 3 3 . Penetration Max . | . . . . . . Secondary Targets 5 | . . . 2 3 . Max Gunslinging Chain 1 | . . . 1 1 . Shots Hit Robots 58 | . . 5 32 21 . Core Hits 29 | . . 3 15 11 . Critical Kills . | . . . . . . Critical Parts Destroyed . | . . . . . . Critical Strikes . | . . . . . . Melee Attacks . | . . . . . . Impact . | . . . . . . Slashing . | . . . . . . Piercing . | . . . . . . Sneak Attacks . | . . . . . . Combat Hostiles . | . . . . . . Follow-up Attacks . | . . . . . . Damage Inflicted 706 | . . 85 413 208 . Guns 706 | . . 85 413 208 . Cannons . | . . . . . . Explosions . | . . . . . . Melee . | . . . . . . Ramming . | . . . . . . Kinetic 576 | . . 85 413 78 . Thermal . | . . . . . . Explosive . | . . . . . . Electromagnetic 130 | . . . . 130 . Impact . | . . . . . . Slashing . | . . . . . . Piercing . | . . . . . . Highest Corruption . | . . . . . . Average Corruption . | . . . . . . Corruption Purged . | . . . . . . Corruption Blocked . | . . . . . . Overload Shots . | . . . . . . Overflow Damage . | . . . . . . Projectiles . | . . . . . . Explosions . | . . . . . . Melee . | . . . . . . Knockbacks . | . . . . . . Impact . | . . . . . . Kinetic . | . . . . . . Secondary . | . . . . . . Self-Inflicted Damage . | . . . . . . Shots . | . . . . . . Rammed . | . . . . . . Targets Rammed . | . . . . . . Kicked . | . . . . . . Crushed . | . . . . . . Highest Temperature 49 | . . . 3 49 . Average Temperature 19 | . . . 3 19 . Received Heat Transfer 240 | . 6 . 180 54 . Siege Activations . | . . . . . . Martial Activations . | . . . . . . Shielding Activations . | . . . . . . Robots Disrupted . | . . . . . . Combat Hostiles . | . . . . . . Robots Corrupted . | . . . . . . Combat Hostiles . | . . . . . . Parts Fried . | . . . . . . Impact Corruptions . | . . . . . . Robots Melted . | . . . . . . Combat Hostiles . | . . . . . . Parts Melted . | . . . . . . Heat Transferred . | . . . . . . Parts Sabotaged . | . . . . . . Parts Stolen . | . . . . . . Parts Stripped . | . . . . . . Power Chain Reactions . | . . . . . . Alert | -11 -10 -10 -9 -9 -8 ------- Run | Yrd Mat Min Mat Min Mat Maximum Alert Level . | . . . . . . Low Security (%) 100 | 100 100 100 100 100 100 Level 1 . | . . . . . . Level 2 . | . . . . . . Level 3 . | . . . . . . Level 4 . | . . . . . . Level 5 . | . . . . . . High Security . | . . . . . . Max Security . | . . . . . . Peak Influence 137 | . . 70 75 137 53 Initial 53 | . . . 23 17 53 Average 18 | . . 24 17 26 53 Influence Increases 462 | . . 70 135 257 . Destroy 0b10 Robot/C 340 | . . 60 100 180 . Destroy 0b10 Robot/NC 15 | . . . 15 . . Destroy Leader 70 | . . 10 20 40 . Allied During Kill 20 | . . . . 20 . Successful Hack 2 | . . . . 2 . Lose Combat Pursuer 15 | . . . . 15 . Influence Decreases 409 | . . 10 150 165 84 Entered New Map 149 | . . . 37 28 84 Time Decay 200 | . . 10 83 107 . Lost Part 60 | . . . 30 30 . Squads Dispatched 3 | . 1 . 1 1 . Investigation 2 | . 1 . . 1 . Extermination . | . . . . . . Reinforcement 1 | . . . 1 . . Assault . | . . . . . . Garrison . | . . . . . . Intercept . | . . . . . . Searches Triggered . | . . . . . . Construction Impeded . | . . . . . . Haulers Reinforced . | . . . . . . Active Scanning Responses . | . . . . . . Cargo Convoy Interrupts . | . . . . . . Stealth | -11 -10 -10 -9 -9 -8 --------- Run | Yrd Mat Min Mat Min Mat Distress Signals 3 | . 1 . 2 . . Communications Jammed . | . . . . . . Distress Signals . | . . . . . . Times Spotted 34 | . 6 3 15 10 . Peak Tracking Total 8 | . 4 3 8 4 . Tactical Retreats 1 | . . . . 1 . Traps | -11 -10 -10 -9 -9 -8 ------- Run | Yrd Mat Min Mat Min Mat Traps Triggered . | . . . . . . Indirectly . | . . . . . . Trap Hack Attempts . | . . . . . . Triggered . | . . . . . . Disarmed . | . . . . . . Reprogrammed . | . . . . . . Reused . | . . . . . . Traps Extracted . | . . . . . . Installed . | . . . . . . Triggered . | . . . . . . Machines | -11 -10 -10 -9 -9 -8 ---------- Run | Yrd Mat Min Mat Min Mat Machines Disabled . | . . . . . . Max in Single Turn . | . . . . . . Machines Repaired . | . . . . . . Machines Dismantled . | . . . . . . Machines Sabotaged . | . . . . . . Overloaded Fab Kills . | . . . . . . Hacking | -11 -10 -10 -9 -9 -8 --------- Run | Yrd Mat Min Mat Min Mat Machines Accessed 3 | . 1 . 1 1 . Terminals 2 | . . . 1 1 . Fabricators . | . . . . . . Repair Stations . | . . . . . . Recycling Units 1 | . 1 . . . . Scanalyzers . | . . . . . . Garrison Access . | . . . . . . Total Hacks 14 | . 8 . 3 3 . Successful 8 | . 7 . . 1 . Failed 6 | . 1 . 3 2 . Catastrophic . | . . . . . . Database Lockouts . | . . . . . . Manual . | . . . . . . Terminals 6 | . . . 3 3 . Fabricators . | . . . . . . Repair Stations . | . . . . . . Recycling Units 8 | . 8 . . . . Scanalyzers . | . . . . . . Garrison Access . | . . . . . . Terminal Hacks 1 | . . . . 1 . Record 1 | . . . . 1 . Fabricator Hacks . | . . . . . . Repair Station Hacks . | . . . . . . Recycling Unit Hacks 7 | . 7 . . . . Recycle Component 5 | . 5 . . . . Process 1 | . 1 . . . . Retrieve Matter 1 | . 1 . . . . Scanalyzer . | . . . . . . Garrison Access Hacks . | . . . . . . Unauthorized Hacks . | . . . . . . Terminals . | . . . . . . Fabricators . | . . . . . . Repair Stations . | . . . . . . Recycling Units . | . . . . . . Scanalyzers . | . . . . . . Garrison Access . | . . . . . . Data Cores Recovered . | . . . . . . Used . | . . . . . . Hacking Detections 3 | . 1 . 1 1 . Full Trace Events 2 | . 1 . . 1 . Feedback Events . | . . . . . . Feedback Blocked . | . . . . . . Robot Schematics Acquired . | . . . . . . Robots Built . | . . . . . . Authchips . | . . . . . . Time . | . . . . . . Total Robot Build Rating . | . . . . . . Part Schematics Acquired . | . . . . . . Parts Built . | . . . . . . Authchips . | . . . . . . Time . | . . . . . . Total Part Build Rating . | . . . . . . Part Studies Acquired . | . . . . . . Parts Repaired . | . . . . . . Time . | . . . . . . Parts Recycled 5 | . 5 . . . . Recycled Matter 391 | . 391 . . . . Retrieved Matter 391 | . 391 . . . . Retrieved Components . | . . . . . . Parts Scanalyzed . | . . . . . . Part Schematics Acquired . | . . . . . . Parts Damaged . | . . . . . . Bothacking | -11 -10 -10 -9 -9 -8 ------------ Run | Yrd Mat Min Mat Min Mat Used RIF Installer . | . . . . . . Robots Hacked . | . . . . . . Non-combat . | . . . . . . Combat . | . . . . . . Robot Hacks Applied . | . . . . . . Relay Couplers Released . | . . . . . . Fabnet Peak Effective % . | . . . . . . Robots Rewired . | . . . . . . Allies Hacked . | . . . . . . Hacks Repelled . | . . . . . . Allies | -11 -10 -10 -9 -9 -8 -------- Run | Yrd Mat Min Mat Min Mat Total Allies 2 | . . . . 2 . Largest Group 2 | . . . . 2 1 Highest-Rated Group 49 | . . . . 49 31 Highest-Rated Ally 31 | . . . . 31 31 Total Orders . | . . . . . . Ally Attacks 11 | . . . . 11 . Total Damage 146 | . . . . 146 . Kills 4 | . . . . 4 . Allies Corrupted . | . . . . . . Allies Melted . | . . . . . . Intel | -11 -10 -10 -9 -9 -8 ------- Run | Yrd Mat Min Mat Min Mat Active Infowar (turns) . | . . . . . . Robot Analysis Total . | . . . . . . Derelict Logs Recovered . | . . . . . . Drone Launches . | . . . . . . Drone Recoveries . | . . . . . . Exploration | -11 -10 -10 -9 -9 -8 ------------- Run | Yrd Mat Min Mat Min Mat Turns Passed 780 | 56 119 75 224 288 18 Spaces Moved 597 | 41 78 47 146 272 13 Core 1 | 1 . . . . . Treads . | . . . . . . Legs . | . . . . . . Wheels 595 | 40 78 47 146 272 12 Hover . | . . . . . . Flight 1 | . . . . . 1 Fastest Speed 50 | 50 90 90 85 80 80 Average Speed 86 | 89 90 90 88 84 82 Slowest Speed 117 | 100 90 90 90 85 117 Overloaded Moves . | . . . . . . Propulsion Burnouts . | . . . . . . Robots Hopped . | . . . . . . Potential Cave-ins . | . . . . . . Cave-ins Triggered . | . . . . . . Exploration Rate (%) 19 | 4 20 13 20 55 4 Regions Visited 5 Branch Regions 2 Pre-discovered Areas . | . . . . . . Known Exits Taken . | . . . . . . Unknown Exits Taken 5 | 1 1 1 1 1 . Scrap Searched 3 | . . . . 3 . Spaces Dug . | . . . . . . Terrain Destroyed . | . . . . . . Melee . | . . . . . . Projectile . | . . . . . . AOE . | . . . . . . Terrain Rammed . | . . . . . . Walls Destroyed . | . . . . . . Machines Disabled . | . . . . . . Actions | -11 -10 -10 -9 -9 -8 --------- Run | Yrd Mat Min Mat Min Mat Total 767 | 60 127 72 187 300 21 Wait 74 | 2 45 18 5 4 . Move 592 | 40 77 46 145 271 13 Hop . | . . . . . . Pick Up 30 | 12 3 3 6 4 2 Fast Attach . | . . . . . . Attach 17 | 6 . . 4 4 3 Detach 1 | . . . . . 1 Swap . | . . . . . . Drop 5 | . 2 1 . . 2 Fire 48 | . . 4 27 17 . Melee . | . . . . . . Ram . | . . . . . . Kick . | . . . . . . Crush . | . . . . . . Escape Stasis . | . . . . . . Rewire . | . . . . . . Trap . | . . . . . . Miscellaneous . | . . . . . . Route ------- -11/Scrapyard -10/Materials -10/Mines -9/Materials -9/Mines -8/Materials History --------- Turn | Location | Event 28 | -11/Scrapyard | Discovered new exit (range 16) 57 | -11/Scrapyard | Entered Materials 58 | -10/Materials | Met a group of wandering Federalists 134 | -10/Materials | Discovered new exit (range 15) 176 | -10/Materials | Entered Mines 176 | -10/Mines | Accompanied by 2 allies 215 | -10/Mines | Discovered new exit (range 5) 251 | -10/Mines | Entered Materials 251 | -9/Materials | Evolved 2 slots: Propulsion x2 311 | -9/Materials | Build established: Mutant 454 | -9/Materials | Discovered new exit (range 7) 475 | -9/Materials | Entered Mines 719 | -9/Mines | Discovered new exit (range 8) 763 | -9/Mines | Entered Materials 763 | -8/Materials | Accompanied by 1 ally 763 | -8/Materials | Evolved 2 slots: Power x1, Weapon x1 768 | -8/Materials | Led the pair of lost Derelicts to an unsafe place 768 | -8/Materials | Lost 3 parts (1p1n1w) 781 | -8/Materials | Self-destructed Last Messages --------------- efficient way to hinder enemy advances and buy the time necessary to mobilize a garrisoned response force. Because traps are installed in areas regularly traveled by even non-combat robots, their sensitivity is set well below their maximum potential to avoid disruptions that could result from a damaged robot accidentally triggering one. 00756_ ALERT: Suspicious activity at Terminal M001. Dispatching Investigation squad. 00761_ G-34 Mercenary destroyed. PARAMETERS=POWER+1,WEAPON+1 LOCATION=UNKNOWN GOAL=ESCAPE 00768_ 83-83P(g): "This place looks worse than where we left..." 00772_ Acquired Imp. Hover Unit. 00777_ 83-83P(g): "Following you was a bad idea, I think." 00777_ Dropped Wheel. Map ----- +----------------------------------------------------+ | ?????????????????????????????????????????????????? | | ?????????????????????????????????????????????????? | | ?????????????????????????????????????????????????? | | ?????????????????????????????????????????????????? | | ?????????????????????????????????????????????????? | | ?????????????????????????????????????????????????? | | ?????????????????????????????????????????????????? | | ?????????????????????????????????????????????????? | | ?????????????????????????????????????????????????? | | ?????????????????????????????????????????????????? | | ?????????????????????????????????????????????????? | | ???????????????????????????? ??????????????????? | | ???????????????????????????? #?????????????????? | | ???????????????????????????? #?????????????????? | | ???????????????????????????# #?????????????????? | | ???????????????????????????# #?????????????????? | | ???????????????????????????# #?????????????????? | | ???????????????????????????# #?????????????????? | | ???????????????????????????# #?????????????????? | | ???????????????????????????# #?????????????????? | | ???????????????????????????# ####??????????????? | | ??????????????????########## ???????????????? | | ??????????????????# # ????????????????? | | ??????????????????# =!!g# #?????????????????? | | ??????????????????# =!= # ########??????????? | | ??????????????????# !!@ # # #??????????? | | ??????????????????# + # """ #??????????? | | ??????????????????# """ # # """ #??????????? | | ??????????????????# """ # + """ #??????????? | | ??????????????????# """ # # #??????????? | | ??????????????????#! # # #??????????? | | ??????????????????########## ########??????????? | | ???????????????????????????#####?????????????????? | | ?????????????????????????????????????????????????? | | ?????????????????????????????????????????????????? | | ?????????????????????????????????????????????????? | | ?????????????????????????????????????????????????? | | ?????????????????????????????????????????????????? | | ?????????????????????????????????????????????????? | | ?????????????????????????????????????????????????? | | ?????????????????????????????????????????????????? | | ?????????????????????????????????????????????????? | | ?????????????????????????????????????????????????? | | ?????????????????????????????????????????????????? | | ?????????????????????????????????????????????????? | | | | | | | | | | | +----------------------------------------------------+ Best States ------------- Heat Dissipation 31 Energy Generation 14 Energy Capacity 160 Matter Stores 300 Matter Capacity 300 Sight Range 16 Terrain Scan Density 10 Propulsion Shielding 33 Evasion (%) 44 Item Schematics ----------------- None Robot Schematics ------------------ None Fabricated ------------ Nothing Repaired ---------- Nothing Studied --------- None Alien Tech Used ----------------- None Achievements -------------- DATA ERROR: Steam Global Achievement% There's More Where That Came From Challenges ------------ None Game ------ Seed PlexusAlphaSpoofer Manual? 0 Play Time 00:11:49 Cumulative 15.0 hours Start 2025.10.26 @ 04:59:12 End 2025.10.26 @ 05:10:26 Sessions 1 Manual Loads 0 Difficulty Rogue Special Mode None Game No. 58 Rogue 56 Adventurer 0 Explorer 2 Win Type - Total 0 Types 0/0/0/0/0/0/0/0/0/0 Lore% 6 Gallery% 20 Achievement% 9 Wizard Run 0 Options --------- Layout 1 ASCII 0 Keyboard 0 Movement Numpad Keybinds 0 Fullscreen 1 Font 32/SmallcapsGlow Map View 50x35 Zoom Use 0% Tactical HUD 1 Map Filters NONE Filters NONE Steam 1 RUN: 5d876ef5-73ed-4597-9d09-ecd034aa74e7